bitfinex/quotes_ETHUSD_20260203
["timestamp","ask_amount","ask_price","bid_price","bid_amount"]
[1770142113510,13.1806815,2197.2,2196.0,1.13843115]
[1770142113716,13.36354504,2197.1,2195.7,1.1454304]
[1770142113885,13.66601747,2197.1,2196.0,0.00684134]
[1770142114080,0.0011,2197.4,2196.6,0.00684134]
[1770142114281,12.2256815,2198.1,2197.2,0.00684134]
[1770142114488,13.36429039,2197.8,2195.6,5.51619758]
[1770142114682,13.36429039,2197.8,2196.2,0.00684134]
[1770142114887,12.2256815,2197.6,2196.3,0.00684134]
[1770142115083,13.1806815,2197.5,2195.6,4.56119758]
[1770142115398,13.1806815,2197.5,2196.3,0.001]
[1770142115606,0.0011,2197.2,2196.3,0.001]
[1770142116681,12.2267815,2197.2,2196.3,0.001]
[1770142116884,12.2256815,2197.0,2196.3,0.001]
[1770142117186,12.2256815,2196.8,2196.0,0.001]
[1770142118004,2.09290059,2197.1,2196.0,0.001]
[1770142118186,2.09290059,2197.1,2196.0,0.00784134]
[1770142118587,14.31858209,2197.1,2196.0,0.00784134]
[1770142118832,1.88709756,2197.0,2196.0,0.001]
[1770142119000,0.0011,2197.4,2196.3,0.00684134]
[1770142119193,0.0011,2198.3,2197.3,0.00684134]
[1770142119392,0.0011,2198.3,2197.2,0.00684134]
[1770142119606,0.0011,2198.3,2197.3,0.00684134]
[1770142119794,0.0011,2198.3,2197.6,0.00684134]
[1770142119993,0.0011,2198.3,2197.2,0.00684134]
[1770142120332,0.56980539,2198.3,2197.3,1.13775494]
[1770142120505,0.56980539,2198.3,2197.1,1.14466534]
[1770142120695,0.56980539,2198.3,2197.2,1.1378031]
[1770142120895,0.56980539,2198.3,2196.9,0.00684134]
[1770142121104,0.56980539,2198.3,2196.8,1.13798066]
[1770142121417,1.3932678,2198.2,2196.8,1.13798951]
[1770142121713,1.3932678,2198.2,2196.7,1.13804574]
[1770142121896,1.13734588,2198.1,2196.8,1.14482878]
[1770142122094,1.3932678,2198.2,2197.2,0.00684134]
[1770142122294,2.09236292,2198.3,2197.2,0.00684134]
[1770142122601,0.9551,2198.3,2197.4,0.00684134]
[1770142123000,2.09234793,2198.3,2197.4,0.00684134]
[1770142123326,2.09234793,2198.3,2197.5,0.00684134]
[1770142123526,0.66411304,2198.2,2197.3,0.00684134]
[1770142123697,0.0011,2198.3,2197.9,0.00684134]
[1770142123893,0.0011,2198.3,2197.8,0.00684134]
[1770142124213,1.13698446,2198.8,2197.6,0.00684134]
[1770142124415,13.36266596,2198.8,2197.4,1.14451793]
[1770142124728,0.66387318,2198.7,2197.4,0.00684134]
[1770142124894,12.88955468,2198.7,2197.4,0.00684134]
[1770142125094,1.40265391,2198.6,2197.5,0.00684134]
[1770142125294,0.954,2198.6,2197.7,0.00684134]
[1770142125502,0.66387318,2198.7,2197.8,1.14430639]
[1770142125709,4.85521345,2199.2,2198.1,0.00684134]
[1770142125909,1.44477434,2199.2,2198.5,0.00684134]
[1770142126109,1.44477434,2199.2,2197.9,1.13742829]
[1770142126313,0.954,2199.0,2197.9,1.1374457]
[1770142126499,0.954,2199.0,2197.5,1.14446116]
[1770142126704,13.1796815,2199.0,2197.4,1.13767039]
[1770142126930,12.3280815,2198.9,2197.2,0.00684134]
[1770142127112,0.1024,2198.6,2197.2,1.13779393]
[1770142127313,0.1024,2198.6,2197.2,1.13777882]
[1770142127499,12.3280815,2198.6,2197.1,1.14467335]
[1770142127699,1.56852007,2198.9,2198.1,0.00684134]
[1770142127936,0.0011,2199.1,2198.2,0.00684134]
[1770142128136,0.0011,2199.1,2198.1,1.14418288]
[1770142128439,0.0011,2198.4,2198.1,1.14418288]
[1770142128621,0.0011,2198.6,2198.2,0.00684134]
[1770142128812,0.0011,2198.6,2198.2,0.57074361]
[1770142129156,0.0011,2198.6,2198.1,1.13734154]
[1770142131314,0.0011,2198.6,2198.0,1.13736923]
[1770142131513,0.0011,2198.6,2197.8,0.00684134]
[1770142131710,0.0011,2198.6,2197.8,1.13747611]
[1770142131925,0.0011,2198.6,2197.9,0.00684134]
[1770142132104,0.0011,2198.6,2197.8,1.1443208]
[1770142132304,0.0011,2198.6,2197.8,0.00684134]
[1770142132939,0.0011,2198.6,2198.4,0.00684134]
[1770142133143,0.0011,2198.6,2197.8,0.5708379]
[1770142133439,0.0011,2198.6,2198.2,0.00684134]
[1770142133736,0.0011,2198.6,2198.1,0.00684134]
[1770142133941,0.0011,2198.6,2197.9,1.14428839]
[1770142134147,0.0011,2198.6,2198.0,0.00684134]
[1770142135039,0.0011,2198.6,2197.5,1.14445702]
[1770142135234,0.0011,2198.6,2197.6,0.00684134]
[1770142135821,0.0011,2198.6,2197.8,0.00684134]
[1770142136141,0.0011,2199.1,2198.9,0.00684134]
[1770142136341,0.0011,2199.3,2198.8,0.00684134]
[1770142136528,0.0011,2199.3,2199.0,0.00684134]
[1770142136707,0.0011,2199.3,2198.6,0.00684134]
[1770142136913,0.0011,2199.3,2198.9,0.00684134]
[1770142137132,0.954,2199.2,2197.8,1.14430522]
[1770142137350,0.954,2199.2,2197.7,1.13754086]
[1770142137351,0.1024,2199.1,2197.7,1.13754086]
[1770142137556,0.1024,2199.1,2197.9,0.00684134]
[1770142137769,0.1024,2199.1,2198.0,0.00684134]
[1770142138051,1.23926647,2199.1,2198.3,0.00684134]
[1770142138247,2.82097909,2199.0,2198.0,0.00684134]
[1770142138409,2.82097909,2199.0,2198.1,0.00684134]
[1770142138742,2.82097909,2199.0,2198.0,0.00684134]
[1770142138938,2.82097909,2199.0,2198.1,0.00684134]
[1770142139138,2.82097909,2199.0,2198.2,0.00684134]
[1770142139322,0.0011,2199.3,2198.6,0.00684134]
[1770142139641,0.0011,2199.3,2198.5,0.00684134]
[1770142139830,1.13783089,2199.3,2198.6,0.00684134]
[1770142140141,0.0011,2199.3,2198.7,0.00684134]
[1770142140443,0.0011,2199.3,2198.6,0.00684134]
[1770142140641,0.0011,2199.3,2198.1,1.14416443]
[1770142140848,0.954,2199.2,2197.8,1.14431559]
[1770142141044,0.1035,2199.1,2198.0,0.00684134]
[1770142141223,0.1035,2199.1,2198.4,0.001]
[1770142141615,0.1035,2199.1,2197.9,0.5769781]
[1770142141836,0.1035,2199.1,2197.8,0.00684134]
[1770142141837,11.93038295,2199.1,2197.8,0.00684134]
[1770142142040,0.0011,2199.3,2197.8,0.00684134]
[1770142142041,0.0011,2199.3,2199.0,0.00684134]
[1770142142240,0.0011,2200.2,2199.2,0.00684134]
[1770142142519,0.0011,2200.2,2200.1,0.00684134]
[1770142142725,0.954,2200.7,2200.1,0.00684134]
[1770142142952,0.954,2200.7,2200.0,0.00684134]
[1770142142953,1.13730931,2200.3,2198.3,0.43380611]
[1770142143125,0.56820857,2200.2,2198.7,1.30684134]
[1770142143318,0.56820857,2200.2,2199.2,0.00684134]
[1770142143519,0.56820857,2200.2,2198.7,1.30684134]
[1770142143853,0.56820857,2200.2,2199.1,0.00684134]
[1770142143854,12.03168295,2200.1,2199.1,0.00684134]
[1770142144177,2.39635278,2200.0,2199.3,0.00684134]
[1770142144353,2.39635278,2200.0,2199.2,0.00684134]
[1770142144354,2.09036363,2200.0,2199.2,0.00684134]
[1770142144558,0.954,2200.0,2199.6,0.00684134]
[1770142144726,0.0011,2200.3,2199.9,0.00684134]
[1770142144924,0.0011,2200.3,2199.7,0.00684134]
[1770142145127,0.0011,2200.3,2199.8,0.00684134]
[1770142145527,0.0011,2200.3,2200.1,0.00684134]
[1770142145831,4.66779882,2200.9,2199.8,0.00684134]
[1770142145832,2.21397335,2200.9,2199.8,0.00684134]
[1770142146033,0.67575692,2200.8,2200.0,0.00684134]
[1770142146426,0.67575692,2200.8,2200.1,0.00684134]
[1770142146867,0.1240529,2200.9,2200.5,0.00684134]
[1770142147024,2.33640291,2202.1,2200.5,0.00684134]
[1770142147025,1.13527996,2202.1,2200.5,0.00684134]
[1770142147234,0.00684134,2201.6,2199.8,1.13646493]
[1770142147425,0.00684134,2201.6,2199.8,1.13642815]
[1770142147426,0.00684134,2201.2,2199.8,1.13642815]
[1770142147654,0.95984134,2201.1,2199.7,1.13651183]
[1770142147858,0.00684134,2201.0,2199.3,12.6623639]
[1770142148152,1.13584734,2201.0,2199.4,5.81292027]
[1770142148354,1.13584734,2201.0,2199.4,5.81976161]
[1770142148532,13.06513029,2201.0,2199.4,1.26623639]
[1770142148872,0.953,2201.1,2199.6,0.00684134]
[1770142149184,0.953,2201.1,2199.8,0.00684134]
[1770142149452,0.953,2201.1,2199.9,0.00684134]
[1770142149639,0.953,2201.1,2199.3,1.13671882]
[1770142149640,12.88228295,2201.1,2199.3,1.13671882]
[1770142149841,0.1024,2201.0,2199.4,0.56904614]
[1770142150052,1.13589895,2200.9,2199.4,1.70569395]
[1770142150262,0.1024,2200.7,2199.4,0.56904614]
[1770142150645,0.1024,2200.7,2199.3,1.13669678]
[1770142150851,12.88228295,2200.8,2199.4,1.13665292]
[1770142151057,12.88228295,2200.8,2199.4,1.14349426]
[1770142151239,0.1024,2200.7,2199.2,1.14357912]
[1770142151590,12.03168295,2200.6,2199.0,1.13685409]
[1770142151737,12.03168295,2200.4,2198.8,4.54779386]
[1770142151941,13.06549164,2200.3,2198.7,2.43699499]
[1770142152185,12.26525325,2200.2,2198.7,1.3]
[1770142152341,12.27209459,2200.2,2198.7,1.3]
[1770142152533,12.26525325,2199.9,2198.7,1.3]
[1770142152738,12.26525325,2199.5,2197.6,0.00684134]
[1770142152966,0.3359703,2199.0,2197.5,0.001]
[1770142153272,0.953,2198.9,2197.5,0.001]
[1770142153457,0.2335703,2198.6,2197.5,0.001]
[1770142153655,12.16285325,2198.6,2197.5,0.001]
[1770142154188,0.1024,2198.4,2197.5,0.001]
[1770142154481,0.1024,2198.4,2198.2,0.001]
[1770142154643,0.953,2198.3,2197.5,0.001]
[1770142155256,1.96943777,2198.4,2197.5,0.001]
[1770142155257,0.1024,2198.4,2197.5,0.001]
[1770142155483,0.953,2198.2,2197.5,0.001]
[1770142155778,1.13713895,2198.5,2197.5,0.001]
[1770142155944,1.13724241,2198.3,2197.5,0.001]
[1770142156666,0.1024,2198.2,2197.5,0.001]
[1770142156880,12.03168295,2198.2,2197.3,1.05434159]
[1770142157267,0.953,2198.1,2197.3,1.05434159]
[1770142157477,0.1024,2198.0,2197.3,1.05434159]
[1770142157779,0.1024,2197.7,2196.3,1.1382772]
[1770142157979,0.1024,2197.7,2196.2,1.13929487]
[1770142158276,0.1024,2197.7,2196.2,0.001]
[1770142158277,1.13760465,2197.6,2196.2,0.001]
[1770142158480,0.953,2197.5,2196.2,0.001]
[1770142158783,0.10924134,2197.4,2196.2,0.001]
[1770142158996,0.24041164,2197.3,2196.2,0.001]
[1770142159287,1.56428937,2197.3,2196.2,0.001]
[1770142159476,0.10924134,2197.2,2196.2,0.001]
[1770142159660,0.10924134,2197.0,2196.2,0.001]
[1770142159856,13.0668876,2197.6,2196.2,0.001]
[1770142160060,0.1024,2197.8,2196.2,0.001]
[1770142160271,0.954,2197.7,2196.2,0.001]
[1770142161073,0.1024,2197.6,2196.2,0.001]
[1770142161697,0.34281164,2197.1,2196.0,0.001]
[1770142161898,0.00684134,2196.7,2196.0,0.001]
[1770142162184,1.13801893,2196.8,2196.0,0.001]
[1770142162561,0.1024,2196.7,2196.0,0.001]
[1770142162758,0.954,2196.6,2196.0,0.001]
[1770142163255,1.13799763,2196.9,2196.0,0.001]
[1770142163458,0.954,2196.8,2196.0,0.001]
[1770142164362,0.954,2196.7,2196.0,0.001]
[1770142166095,17.64116589,2197.1,2196.0,0.001]
[1770142166096,1.96393801,2197.1,2196.0,0.001]
[1770142166261,1.24019574,2197.3,2196.2,0.001]
[1770142166467,0.0011,2197.1,2196.0,0.001]
[1770142166677,0.954,2197.0,2196.0,0.001]
[1770142167112,0.0011,2197.1,2196.2,0.00684134]
[1770142167599,0.0011,2197.1,2196.1,0.00684134]
[1770142168110,0.0011,2197.1,2196.0,0.57034187]
[1770142168932,0.0011,2197.1,2196.1,1.13838167]
[1770142169244,0.0011,2197.1,2196.3,0.00684134]
[1770142169564,0.0011,2197.1,2196.4,0.00684134]
[1770142169705,0.0011,2197.3,2196.5,0.00684134]
[1770142169906,0.0011,2197.3,2196.7,0.00684134]
[1770142170242,0.0011,2197.3,2196.3,0.00684134]
[1770142170243,0.0011,2197.3,2196.0,1.70874165]
[1770142170406,0.0011,2197.3,2196.1,0.62626617]
[1770142170602,0.0011,2197.3,2196.6,0.00684134]
[1770142170903,2.09143789,2198.0,2196.7,1.14491208]
[1770142171099,0.1024,2197.9,2196.7,1.14491208]
[1770142171298,0.77674284,2197.9,2196.8,0.57040364]
[1770142172034,2.09143789,2198.0,2196.8,0.57724498]
[1770142172230,2.09143789,2198.0,2196.8,0.57040364]
[1770142172399,0.954,2198.0,2196.8,0.57040364]
[1770142172603,2.09140191,2198.0,2196.8,0.57040364]
[1770142172799,0.954,2198.0,2196.9,1.13796713]
[1770142173034,0.954,2198.0,2197.0,0.62670807]
[1770142173232,0.954,2198.0,2197.0,0.63354941]
[1770142173555,0.0011,2198.2,2197.4,0.00684134]
[1770142173847,0.954,2199.0,2198.0,0.00684134]
[1770142174061,0.954,2199.3,2198.3,0.00684134]
[1770142174203,0.954,2199.3,2198.1,0.00684134]
[1770142174535,0.954,2199.3,2197.7,12.20528865]
[1770142174743,0.954,2199.3,2198.0,0.00684134]
[1770142175041,1.136777,2199.2,2198.0,1.14421885]
[1770142175203,1.136777,2199.2,2198.0,0.00684134]
[1770142175538,1.136777,2199.2,2198.0,1.1373956]
[1770142175708,2.25522882,2199.2,2198.1,0.56938868]
[1770142175907,2.25522882,2199.2,2197.8,1.13745498]
[1770142176108,2.25522882,2199.2,2198.0,1.13739333]
[1770142176303,0.954,2199.1,2198.0,1.13739333]
[1770142176734,0.954,2199.1,2197.8,1.13746922]
[1770142176921,1.1368804,2199.0,2197.7,4.55005146]
[1770142177124,1.91256578,2199.0,2197.8,0.45568928]
[1770142177324,1.91256578,2199.0,2197.6,1.13759373]
[1770142177528,1.91256578,2199.0,2197.8,0.00684134]
[1770142177715,0.954,2198.9,2197.7,0.00684134]
[1770142177916,0.1024,2198.8,2197.4,0.00684134]
[1770142178218,0.1024,2198.8,2197.4,1.14452804]
[1770142178219,1.62497228,2198.8,2197.4,1.14452804]
[1770142178414,1.62497228,2198.8,2197.4,0.00684134]
[1770142178636,1.62497228,2198.8,2197.6,1.13757678]
[1770142178813,1.62497228,2198.8,2197.5,1.14446739]
[1770142179010,1.13703552,2198.7,2197.5,0.00684134]
[1770142179210,0.73101499,2198.6,2197.5,1.71540816]
[1770142179536,0.73101499,2198.6,2197.5,0.57775493]
[1770142179836,0.73101499,2198.6,2197.5,1.70856438]
[1770142180018,0.73101499,2198.6,2197.5,1.13765079]
[1770142180220,0.73101499,2198.6,2197.5,1.14449213]
[1770142180426,0.73101499,2198.6,2197.5,0.00684134]
[1770142180614,0.73101499,2198.6,2197.7,0.00684134]
[1770142180836,0.73101499,2198.6,2197.8,0.00684134]
[1770142181028,2.65959543,2198.8,2197.7,1.14434627]
[1770142181242,1.52257228,2198.8,2197.9,0.00684134]
[1770142181555,2.09093323,2198.9,2197.8,0.00684134]
[1770142181715,14.34769025,2198.9,2197.3,1.13772245]
[1770142181913,2.09093323,2198.9,2197.7,1.13754221]
[1770142182114,0.954,2198.9,2197.9,0.00684134]
[1770142182315,1.1369838,2198.8,2198.0,0.00684134]
[1770142182553,1.43477408,2198.7,2197.1,0.00684134]
[1770142182750,1.43477408,2198.7,2197.7,1.13752369]
[1770142183051,4.54793523,2198.9,2197.5,1.13762119]
[1770142183052,1.13696476,2198.9,2197.5,1.13762119]
[1770142183215,1.13696476,2198.9,2197.5,1.14446253]
[1770142183416,1.13696476,2198.9,2197.6,0.00684134]
[1770142183843,1.13696476,2198.9,2197.7,0.00684134]
[1770142184140,1.13696476,2198.9,2197.6,0.00684134]
[1770142184338,0.74143176,2198.8,2197.5,1.14446253]
[1770142184885,12.35915702,2198.7,2197.3,0.00684134]
[1770142185157,1.13719068,2198.4,2196.8,1.13799354]
[1770142185447,1.0564,2198.3,2197.1,0.00684134]
[1770142185820,0.954,2198.3,2197.3,0.00684134]
[1770142186039,0.954,2198.3,2197.2,0.00684134]
[1770142186350,0.954,2198.2,2197.2,0.00684134]
[1770142186643,0.954,2198.2,2197.3,0.00684134]
[1770142186860,0.954,2198.2,2196.8,1.13799339]
[1770142187044,1.13734588,2198.1,2196.8,1.14483473]
[1770142187254,1.13734588,2198.1,2196.8,1.71589405]
[1770142187452,0.1024,2198.0,2196.8,1.13799993]
[1770142187659,0.1024,2198.0,2196.4,4.56070168]
[1770142187660,1.0564,2198.0,2196.7,1.13804887]
[1770142187950,1.0564,2198.0,2196.8,1.14485824]
[1770142188259,1.44505029,2197.9,2196.8,1.14485824]
[1770142188639,0.954,2198.0,2196.8,1.14485824]
[1770142189027,2.09142145,2198.0,2197.0,1.13791533]
[1770142189245,2.09142145,2198.0,2196.9,1.14476977]
[1770142189419,2.09142145,2198.0,2196.9,1.13792843]
[1770142190118,2.09142145,2198.0,2196.9,1.14476977]
[1770142190334,0.66408375,2197.9,2197.0,0.00684134]
[1770142190531,0.66408375,2197.9,2196.8,0.00684134]
[1770142190827,12.656248,2197.7,2196.4,0.001]
[1770142191024,12.656248,2197.7,2196.4,1.13919476]
[1770142191025,1.13765642,2197.5,2196.4,1.13919476]
[1770142191258,1.29922183,2197.6,2196.7,0.00684134]
[1770142191561,0.66408375,2197.9,2196.8,0.00684134]
[1770142191562,0.954,2197.5,2196.8,0.00684134]
[1770142191763,0.954,2197.5,2197.0,0.00684134]
[1770142192058,0.954,2197.5,2196.9,0.00684134]
[1770142192365,0.954,2197.5,2196.6,0.00684134]
[1770142192657,0.954,2197.5,2196.5,1.14501462]
[1770142192827,0.954,2197.5,2197.1,0.001]
[1770142193028,0.954,2197.5,2196.6,0.00684134]
[1770142193251,2.0916566,2197.5,2196.6,0.57125724]
[1770142193474,2.0916566,2197.5,2196.4,1.13922022]
[1770142193838,2.0916566,2197.5,2196.4,0.001]
[1770142194051,2.0916566,2197.5,2196.4,0.00684134]
[1770142194052,12.97114019,2197.4,2196.4,0.00684134]
[1770142194235,13.07354019,2197.2,2196.1,0.001]
[1770142194434,13.07354019,2196.9,2196.0,0.001]
[1770142194655,0.954,2196.8,2196.0,0.001]
[1770142195239,1.13807074,2196.7,2196.0,0.001]
[1770142196165,0.954,2196.6,2196.0,0.001]
[1770142196335,4.5517811,2197.0,2196.0,0.001]
[1770142196677,0.1024,2196.7,2195.2,0.001]
[1770142196969,0.1024,2196.2,2195.2,0.001]
[1770142197140,1.13838167,2196.1,2195.2,0.001]
[1770142197344,0.954,2196.0,2195.2,0.001]
[1770142197668,0.954,2195.9,2195.2,0.001]
[1770142197874,0.954,2195.9,2195.2,0.00784134]
[1770142198234,2.44571475,2196.2,2195.3,0.00684134]
[1770142198549,0.1024,2195.8,2194.1,0.00684134]
[1770142198749,0.1024,2195.5,2193.7,12.74735165]
[1770142199071,15.19045417,2195.8,2194.5,0.00684134]
[1770142199072,0.1024,2195.7,2194.5,0.00684134]
[1770142199230,1.77129742,2195.7,2194.9,0.00684134]
[1770142199433,0.954,2195.6,2194.8,0.00684134]
[1770142199860,0.954,2195.6,2194.7,0.00684134]
[1770142200061,1.13853581,2195.9,2194.8,0.00684134]
[1770142200278,1.13853581,2195.9,2194.7,0.00684134]
[1770142200279,0.1024,2195.8,2194.7,0.00684134]
[1770142200445,13.07354019,2195.8,2194.5,0.00684134]
[1770142200668,15.04553619,2195.8,2194.8,0.00684134]
[1770142200851,15.04553619,2195.8,2194.5,0.00684134]
[1770142201049,15.04553619,2195.8,2194.2,0.00684134]
[1770142201261,13.07354019,2195.6,2194.5,0.00684134]
[1770142201497,1.42121292,2195.5,2194.8,0.00684134]
[1770142201680,1.13845738,2196.0,2195.1,0.00684134]
[1770142201850,14.10926274,2196.6,2195.4,0.00684134]
[1770142202052,1.70693718,2196.9,2196.1,0.00684134]
[1770142202249,0.954,2196.8,2195.8,0.00684134]
[1770142202467,0.954,2196.8,2195.5,0.00684134]
[1770142202468,14.19123391,2196.8,2195.5,0.00684134]
[1770142202671,14.19123391,2196.8,2195.9,0.00684134]
[1770142202983,14.19123391,2196.8,2196.4,0.00684134]
[1770142202984,0.954,2196.8,2196.4,0.00684134]
[1770142203168,1.16947594,2197.8,2196.4,0.00684134]
[1770142203169,0.954,2197.0,2196.4,0.00684134]
[1770142203484,0.954,2197.0,2195.5,0.00684134]
[1770142203485,13.07354019,2196.9,2195.5,0.00684134]
[1770142203780,13.07354019,2196.9,2195.0,1.14578254]
[1770142203953,14.37389421,2196.8,2195.4,0.00684134]
[1770142204353,12.97114019,2197.3,2196.2,0.00684134]
[1770142204557,0.955,2197.2,2196.4,0.00684134]
[1770142204963,0.955,2197.2,2196.8,0.00684134]
[1770142205179,0.955,2197.2,2196.5,0.00684134]
[1770142205481,0.955,2197.2,2195.8,0.00684134]
[1770142205482,15.06395491,2197.2,2195.8,0.00684134]
[1770142205681,1.96152019,2197.1,2195.8,0.00684134]
[1770142205983,0.1024,2197.0,2195.7,1.14542284]
[1770142206153,0.1024,2197.0,2195.9,1.14530886]
[1770142206354,0.1024,2197.0,2196.0,0.00684134]
[1770142206555,0.1024,2197.0,2196.1,0.00684134]
[1770142206763,1.81518751,2197.0,2196.1,0.00684134]
[1770142207083,1.81518751,2197.0,2196.0,0.00684134]
[1770142207377,1.13796713,2196.9,2196.0,0.00684134]
[1770142207579,1.13796713,2196.9,2195.9,0.00684134]
[1770142207783,1.13796713,2196.9,2195.8,0.00684134]
[1770142207982,0.75050232,2196.8,2195.8,0.00684134]
[1770142208483,0.1024,2197.4,2196.4,0.00684134]
[1770142208658,0.955,2197.0,2196.4,0.00684134]
[1770142208856,0.955,2197.0,2196.0,0.00684134]
[1770142209185,0.955,2197.0,2196.3,0.00684134]
[1770142209562,0.955,2197.0,2196.6,0.00684134]
[1770142209893,0.955,2197.0,2196.7,0.00684134]
[1770142210075,0.955,2197.0,2196.6,0.00684134]
[1770142210753,0.955,2197.0,2196.7,0.00684134]
[1770142210961,0.0011,2197.8,2197.3,0.00684134]
[1770142211270,5.71779406,2198.7,2197.3,0.00684134]
[1770142211271,1.13803297,2198.9,2197.7,0.00684134]
[1770142211470,1.13703552,2198.7,2197.5,1.14449776]
[1770142211671,5.5031133,2198.8,2197.7,0.00684134]
[1770142211672,2.09202223,2198.8,2197.7,0.00684134]
[1770142211898,2.09202223,2198.8,2197.6,0.00684134]
[1770142212393,2.09202223,2198.8,2197.7,0.00684134]
[1770142212598,15.06316242,2198.8,2197.6,0.00684134]
[1770142212756,1.96120568,2198.7,2197.6,0.00684134]
[1770142213163,1.96120568,2198.7,2197.5,0.00684134]
[1770142213358,3.09827143,2198.7,2197.6,1.14442353]
[1770142213584,1.96120568,2198.7,2197.6,1.14442353]
[1770142213797,1.58873459,2198.6,2197.7,0.00684134]
[1770142213993,1.58873459,2198.6,2197.6,0.00684134]
[1770142214190,1.58873459,2198.6,2197.5,1.14447452]
[1770142214406,1.58873459,2198.6,2197.6,0.00684134]
[1770142214588,1.58873459,2198.6,2197.5,1.14447452]
[1770142214589,0.1024,2198.4,2196.6,12.74735165]
[1770142214889,13.07354019,2198.4,2197.1,0.00684134]
[1770142215189,0.1024,2198.3,2197.3,0.00684134]
[1770142215390,0.954,2198.2,2197.3,0.00684134]
[1770142215563,2.09130163,2198.2,2197.3,0.00684134]
[1770142215782,2.09130163,2198.2,2197.0,1.13788071]
[1770142215980,0.1024,2198.1,2196.9,0.00684134]
[1770142216185,13.07354019,2198.1,2196.6,0.00684134]
[1770142216499,2.62173427,2198.2,2197.4,0.00684134]
[1770142216500,0.954,2198.2,2197.4,0.00684134]
[1770142216707,0.954,2198.2,2197.3,0.00684134]
[1770142217000,2.09130389,2198.2,2197.1,1.14467041]
[1770142217203,2.09130171,2198.2,2197.2,1.14465256]
[1770142217494,2.09130171,2198.2,2197.2,1.14461767]
[1770142217495,2.09130077,2198.2,2197.2,1.14461767]
[1770142217676,0.954,2198.2,2197.2,1.14463737]
[1770142217878,0.0011,2198.0,2197.2,1.14463737]
[1770142218078,0.0011,2198.0,2196.9,1.1379179]
[1770142218307,0.0011,2198.0,2197.0,1.13791023]
[1770142218512,0.0011,2198.0,2196.9,1.14476923]
[1770142218813,0.0011,2198.0,2197.4,0.00684134]
[1770142218977,0.0011,2198.0,2197.7,0.00684134]
[1770142219177,0.0011,2198.0,2197.4,0.00684134]
[1770142219425,0.0011,2198.0,2197.6,0.00684134]
[1770142219794,0.0011,2198.0,2197.7,0.00684134]
[1770142219976,0.0011,2198.0,2197.5,1.14447322]
[1770142220177,0.0011,2198.0,2197.6,0.00684134]
[1770142220810,0.0011,2198.0,2197.7,0.00684134]
[1770142221587,0.0011,2198.0,2197.6,0.00684134]
[1770142221922,0.0011,2198.0,2196.2,12.56653501]
[1770142222088,0.0011,2198.0,2197.0,1.13791394]
[1770142222290,0.0011,2198.0,2197.3,4.55102512]
[1770142222598,0.0011,2198.0,2197.5,0.00684134]
[1770142222797,0.0011,2198.0,2197.4,0.00684134]
[1770142223003,0.0011,2198.0,2197.5,0.00684134]
[1770142223202,0.0011,2198.0,2197.2,0.00684134]
[1770142223518,0.0011,2198.0,2197.0,1.13790878]
[1770142223814,0.0011,2198.0,2197.0,0.56967158]
[1770142224019,0.0011,2198.0,2197.0,0.57651292]
[1770142224309,0.0011,2198.0,2197.0,0.00684134]
[1770142224511,0.0011,2198.0,2197.1,0.00684134]
[1770142224716,0.0011,2198.0,2197.4,0.00684134]
[1770142224916,0.0011,2198.0,2197.5,0.00684134]
[1770142225317,0.0011,2198.0,2197.2,0.00684134]
[1770142226183,0.0011,2198.0,2196.7,0.00684134]
[1770142226390,12.38612645,2198.0,2196.9,0.00684134]
[1770142226590,1.23861265,2197.9,2196.9,0.00684134]
[1770142227090,12.48742645,2197.8,2196.6,1.13812229]
[1770142227289,12.48742645,2197.8,2196.5,1.14498496]
[1770142227290,0.954,2197.7,2196.5,1.14498496]
[1770142227493,0.954,2197.7,2196.5,1.14499496]
[1770142227494,13.33902645,2197.7,2196.5,1.14499496]
[1770142227721,1.13760465,2197.6,2196.5,1.14499496]
[1770142227924,1.90270497,2197.5,2196.5,1.71546827]
[1770142228590,0.954,2197.7,2196.9,0.00684134]
[1770142228787,2.09156417,2197.7,2196.6,0.00684134]
[1770142229013,2.09156417,2197.7,2196.7,0.00684134]
[1770142229403,2.09156417,2197.7,2196.8,0.00684134]
[1770142229630,0.954,2197.7,2197.1,0.00684134]
[1770142229797,0.954,2197.7,2197.0,0.00684134]
[1770142230229,0.954,2197.7,2197.0,1.1447352]
[1770142230528,0.954,2197.7,2197.0,0.00684134]
[1770142230740,1.28700854,2197.7,2197.0,0.00684134]
[1770142231036,2.42456375,2197.7,2196.6,1.14592581]
[1770142231210,1.28700854,2197.7,2196.7,0.00684134]
[1770142231413,0.24256456,2197.6,2196.8,1.13801668]
[1770142231726,0.24256456,2197.6,2196.7,1.14489313]
[1770142232444,1.38018261,2197.6,2196.6,1.13909206]
[1770142232731,0.24256456,2197.6,2196.7,1.13806923]
[1770142232937,0.24256456,2197.6,2196.6,0.00784134]
[1770142233108,1.13761044,2197.6,2196.6,1.14594288]
[1770142233626,0.954,2197.7,2196.9,0.00684134]
[1770142233918,2.09155687,2197.7,2196.9,0.00684134]
[1770142234339,2.09155687,2197.7,2196.8,0.00684134]
[1770142234903,2.09157917,2197.7,2196.7,0.00684134]
[1770142235102,0.7812262,2197.6,2196.7,0.00684134]
[1770142235325,0.7812262,2197.6,2196.8,0.00684134]
[1770142235719,0.7812262,2197.6,2196.6,1.14595524]
[1770142235998,0.7812262,2197.6,2196.6,1.1391139]
[1770142236204,0.28728054,2197.5,2196.7,0.00684134]
[1770142236604,1.42494157,2197.5,2196.7,0.00684134]
[1770142236924,0.28728054,2197.5,2196.7,0.00684134]
[1770142237234,2.09157109,2197.7,2196.9,0.00684134]
[1770142237528,2.09157109,2197.7,2197.0,0.00684134]
[1770142237529,0.954,2197.7,2197.0,0.00684134]
[1770142238550,0.954,2197.7,2197.1,0.00684134]
[1770142238753,0.954,2197.7,2197.0,0.00684134]
[1770142239040,1.85904987,2197.7,2197.0,0.00684134]
[1770142239342,2.99663502,2197.7,2196.6,1.14592848]
[1770142239554,2.99663502,2197.7,2196.7,1.14491014]
[1770142239749,2.99660435,2197.7,2196.9,0.00684134]
[1770142240040,0.954,2197.7,2196.9,0.00684134]
[1770142240212,0.954,2197.7,2197.2,0.00684134]
[1770142240426,0.0011,2197.8,2197.3,0.00684134]
[1770142240613,0.0011,2198.0,2197.7,0.00684134]
[1770142240805,3.49246377,2198.7,2197.9,0.00684134]
[1770142240806,1.16947594,2198.7,2197.9,0.00684134]
[1770142241038,0.954,2198.7,2198.0,0.00684134]